bitfinex-derivatives/quotes_SOLF0:USTF0_20241230
["timestamp","ask_amount","ask_price","bid_price","bid_amount"]
[1735534681110,8.41542981,190.25,190.18,8.41542981]
[1735534681512,2.6341,190.23,190.18,8.41542981]
[1735534681712,8.41542981,190.25,190.18,8.41542981]
[1735534682510,2.6346,190.2,190.18,8.41542981]
[1735534683216,8.41542981,190.25,190.18,8.41542981]
[1735534685318,2.6344,190.21,190.18,8.41542981]
[1735534685818,8.41542981,190.25,190.18,8.41542981]
[1735534686018,2.6345,190.2,190.18,8.41542981]
[1735534686219,8.41542981,190.25,190.18,8.41542981]
[1735534686913,8.41542981,190.25,190.15,3.16]
[1735534687115,8.41542981,190.25,190.17,8.41542981]
[1735534687316,8.41542981,190.25,190.19,8.41542981]
[1735534687515,2.6344,190.21,190.19,8.41542981]
[1735534688511,8.41542981,190.27,190.19,8.41542981]
[1735534688714,62.31358476,190.28,190.21,8.41542981]
[1735534688909,8.41542981,190.27,190.21,8.41542981]
[1735534689316,8.41542981,190.27,190.19,8.41542981]
[1735534689520,8.41542981,190.25,190.19,8.41542981]
[1735534689719,8.41542981,190.23,190.12,1.5452]
[1735534689915,8.41542981,190.23,190.15,8.41542981]
[1735534690215,8.41542981,190.21,190.12,1.5452]
[1735534690424,2.6353,190.15,190.14,8.41542981]
[1735534691418,8.41542981,190.21,190.14,8.41542981]
[1735534691615,2.635,190.17,190.14,8.41542981]
[1735534691815,8.41542981,190.21,190.14,8.41542981]
[1735534692215,2.6349,190.17,190.14,8.41542981]
[1735534692823,2.635,190.16,190.14,8.41542981]
[1735534694524,2.6349,190.17,190.14,8.41542981]
[1735534694927,8.41542981,190.21,190.14,8.41542981]
[1735534695422,8.41542981,190.21,190.16,8.41542981]
[1735534695823,9.89642981,190.23,190.16,8.41542981]
[1735534696320,2.6352,190.15,190.14,8.41542981]
[1735534697821,2.6354,190.13,190.12,1.5452]
[1735534698025,8.41542981,190.17,190.12,4.09925513]
[1735534698324,8.41542981,190.17,190.11,10.03022981]
[1735534698519,8.41542981,190.17,190.12,4.10041054]
[1735534698520,2.6351,190.16,190.12,4.10041054]
[1735534698716,8.41542981,190.17,190.11,8.41542981]
[1735534699315,8.41542981,190.15,190.05,1.5585]
[1735534699525,8.41542981,190.15,190.07,8.41542981]
[1735534699721,8.41542981,190.15,190.08,4.10207835]
[1735534699921,2.6361,190.08,190.07,8.41542981]
[1735534700117,2.6361,190.08,190.07,12.5178105]
[1735534700324,2.6361,190.08,190.07,8.41542981]
[1735534700619,2.6361,190.08,190.07,12.51843766]
[1735534700816,2.6361,190.08,190.07,8.41542981]
[1735534701221,2.6361,190.08,190.07,12.5184476]
[1735534702020,2.6361,190.08,190.07,8.41542981]
[1735534705126,2.6365,190.06,190.05,9.97392981]
[1735534706325,3.16,190.15,190.03,4.6624]
[1735534706326,2.6368,190.04,190.03,4.6624]
[1735534706627,2.6368,190.04,190.03,17.1810502]
[1735534707722,8.41542981,190.11,190.03,5.62562039]
[1735534707927,8.41542981,190.09,190.02,8.41542981]
[1735534708831,2.6369,190.04,190.02,8.41542981]
[1735534709428,2.6367,190.05,190.02,8.41542981]
[1735534709633,8.41542981,190.12,190.04,8.41542981]
[1735534709829,8.41542981,190.12,190.06,8.41542981]
[1735534710035,2.6361,190.1,190.06,8.41542981]
[1735534710237,8.41542981,190.12,190.06,8.41542981]
[1735534712244,2.6364,190.07,190.06,8.41542981]
[1735534712846,8.41542981,190.12,189.99,4.70328539]
[1735534713045,2.6368,190.04,190.02,8.41542981]
[1735534713644,2.6368,190.04,190.03,4.09704692]
[1735534714141,2.6368,190.04,190.02,8.41542981]
[1735534716352,3.16,190.15,190.03,4.09581425]
[1735534716553,8.41542981,190.16,190.09,8.41542981]
[1735534716755,8.41542981,190.18,190.11,8.41542981]
[1735534717846,2.635,190.16,190.11,8.41542981]
[1735534718049,8.41542981,190.2,190.13,8.41542981]
[1735534719252,2.6351,190.16,190.13,8.41542981]
[1735534719454,8.41542981,190.2,190.13,8.41542981]
[1735534719757,2.6341,190.23,190.13,11.55542981]
[1735534719951,8.41542981,190.2,190.13,11.55542981]
[1735534720453,2.635,190.17,190.13,11.55542981]
[1735534720952,8.41542981,190.14,190.01,32.28511746]
[1735534721156,8.41542981,190.12,190.05,8.41542981]
[1735534721458,8.41542981,190.12,190.06,4.10002186]
[1735534721655,2.636,190.09,190.07,12.51545167]
[1735534721846,8.41542981,190.14,190.08,4.10196641]
[1735534722052,8.41542981,190.14,190.07,8.41542981]
[1735534722249,8.41542981,190.14,190.08,4.10197527]
[1735534722447,8.41542981,190.14,190.09,4.10197527]
[1735534722648,8.41542981,190.14,190.07,8.41542981]
[1735534722848,8.41542981,190.14,190.08,4.10443509]
[1735534723156,8.41542981,190.14,190.09,4.10443509]
[1735534723356,2.6352,190.15,190.1,4.10443509]
[1735534723559,8.41542981,190.16,190.07,8.41542981]
[1735534723858,8.41542981,190.16,190.09,8.41542981]
[1735534724059,8.41542981,190.16,190.1,4.10631701]
[1735534724260,13.31287535,190.18,190.06,3.14]
[1735534724458,13.31287535,190.18,190.07,4.10767405]
[1735534724659,13.31287535,190.18,190.08,4.10767405]
[1735534724960,13.31287535,190.18,190.09,4.10767405]
[1735534725159,13.31287535,190.18,190.1,4.10767405]
[1735534725361,13.31287535,190.18,190.07,3.14]
[1735534725659,2.6357,190.11,190.08,4.10805069]
[1735534725860,13.31287535,190.18,190.09,4.10805069]
[1735534726060,13.31287535,190.18,190.1,4.10805069]
[1735534726253,13.31287535,190.18,190.07,3.14]
[1735534726456,13.31287535,190.18,190.08,4.10844013]
[1735534726657,16.45287535,190.22,190.09,17.42131548]
[1735534726858,16.45287535,190.22,190.1,5.58614013]
[1735534727061,16.45287535,190.22,190.11,4.10844013]
[1735534727261,2.6354,190.14,190.12,4.10844013]
[1735534727461,2.6354,190.14,190.1,1.4777]
[1735534727758,2.6354,190.13,190.11,4.10856482]
[1735534727963,16.45287535,190.22,190.12,4.10856482]
[1735534728164,16.45287535,190.22,190.13,4.10856482]
[1735534728463,2.6354,190.14,190.1,1.4777]
[1735534728666,2.6354,190.14,190.11,4.10939573]
[1735534728865,2.6354,190.14,190.12,4.10938133]
[1735534729066,2.6354,190.14,190.13,4.10938133]
[1735534732167,16.45287535,190.22,190.13,4.10938133]
[1735534732466,13.31287535,190.22,190.14,4.10938133]
[1735534732665,2.6348,190.18,190.15,4.10938133]
[1735534732862,13.31287535,190.25,190.16,4.10938133]
[1735534733063,13.31287535,190.25,190.12,16.45287535]
[1735534733260,2.6348,190.18,190.13,4.11303946]
[1735534733456,2.6348,190.18,190.14,4.11303946]
[1735534733660,2.6348,190.18,190.15,4.11303946]
[1735534733857,13.31287535,190.25,190.16,4.11303946]
[1735534734159,13.31287535,190.25,190.17,4.11303946]
[1735534734357,2.6348,190.18,190.12,19.08827535]
[1735534734560,1.5451,190.26,190.15,13.31287535]
[1735534734763,1.5451,190.26,190.16,4.11357911]
[1735534734963,1.5451,190.26,190.17,7.25357911]
[1735534735168,75.62646011,190.28,190.17,7.25357911]
[1735534735169,75.62646011,190.28,190.18,4.11357911]
[1735534735467,75.62646011,190.28,190.17,3.14]
[1735534735662,75.62646011,190.28,190.18,4.11293046]
[1735534735866,75.62646011,190.28,190.17,3.14]
[1735534736065,75.62646011,190.28,190.18,4.11293046]
[1735534736264,75.62646011,190.28,190.17,3.14]
[1735534736467,2.6345,190.2,190.18,4.11229983]
[1735534736664,2.6345,190.2,190.19,4.11229983]
[1735534737068,2.6347,190.18,190.17,3.14]
[1735534737264,2.6347,190.18,190.17,7.25192789]
[1735534737468,13.31287535,190.25,190.17,7.25192789]
[1735534737668,2.6345,190.2,190.18,4.11171041]
[1735534737863,75.62646011,190.28,190.17,3.14]
[1735534738165,2.6345,190.2,190.17,3.14]
[1735534738366,2.6345,190.2,190.18,4.11165901]
[1735534738561,2.6345,190.2,190.19,4.11165901]
[1735534738770,75.62646011,190.28,190.19,4.11165901]
[1735534738973,75.62646011,190.28,190.2,4.11165901]
[1735534739268,75.62646011,190.28,190.21,4.11165901]
[1735534739468,2.634,190.24,190.18,14.91647535]
[1735534739659,62.31358476,190.28,190.19,4.10926733]
[1735534739861,62.31358476,190.28,190.2,4.10926733]
[1735534740075,62.31358476,190.28,190.21,4.10926733]
[1735534740368,62.31358476,190.28,190.19,1.5359]
[1735534740569,2.6342,190.22,190.2,4.10916261]
[1735534740779,62.31358476,190.28,190.21,4.10916629]
[1735534740968,62.31358476,190.28,190.19,1.5359]
[1735534741171,75.62646011,190.28,190.18,4.6636]
[1735534741366,13.31287535,190.25,190.09,7.28627936]
[1735534741666,3.06,190.27,190.1,5.74254147]
[1735534741667,2.635,190.16,190.1,5.74254147]
[1735534741870,16.37287535,190.22,190.11,4.10984147]
[1735534742173,80.89336011,190.28,190.17,2.6348]
[1735534742174,2.6341,190.23,190.17,2.6348]
[1735534742369,62.31358476,190.28,190.18,7.16925708]
[1735534742567,62.31358476,190.28,190.19,4.10925708]
[1735534742772,62.31358476,190.28,190.2,4.10925708]
[1735534742972,62.31358476,190.28,190.18,4.6409]
[1735534743174,62.31358476,190.28,190.19,4.10823932]
[1735534743370,62.31358476,190.28,190.2,4.10823932]
[1735534743677,62.31358476,190.28,190.18,4.6409]
[1735534743863,2.6339,190.25,190.19,4.10658226]
[1735534744067,2.6339,190.25,190.2,4.10658226]
[1735534744364,62.31358476,190.28,190.18,4.6409]
[1735534744563,2.6343,190.22,190.19,4.10515995]
[1735534744771,2.6343,190.22,190.18,4.6409]
[1735534744968,2.6343,190.22,190.19,4.10521269]
[1735534745170,2.634,190.24,190.18,4.6409]
[1735534745373,62.31358476,190.28,190.19,4.10491455]
[1735534745571,62.31358476,190.28,190.2,4.10491455]
[1735534745773,2.6339,190.24,190.18,4.6409]
[1735534746073,2.6339,190.24,190.19,4.10398941]
[1735534746273,2.6339,190.24,190.2,4.10398941]
[1735534746571,2.6339,190.24,190.18,4.6409]
[1735534746773,2.6339,190.24,190.19,4.10293893]
[1735534747074,2.634,190.23,190.2,4.10293893]
[1735534747274,2.634,190.23,190.19,2.6345]
[1735534747474,2.634,190.23,190.2,4.10275975]
[1735534747674,2.634,190.23,190.19,2.6345]
[1735534747876,2.634,190.23,190.2,4.10207503]
[1735534748079,2.634,190.23,190.19,2.6345]
[1735534748271,2.634,190.23,190.2,4.10202206]
[1735534748465,2.634,190.23,190.19,2.6345]
[1735534748665,2.6342,190.22,190.18,4.6409]
[1735534748871,13.31287535,190.29,190.18,4.6409]
[1735534749078,13.31287535,190.29,190.19,4.10159449]
[1735534749278,2.6342,190.22,190.18,7.2755]
[1735534749477,2.6342,190.22,190.19,4.10150786]
[1735534749674,2.6342,190.22,190.18,7.2755]
[1735534749871,2.6342,190.22,190.19,4.10108395]
[1735534750072,2.6342,190.22,190.18,7.2755]
[1735534750373,2.6343,190.21,190.18,4.6409]
[1735534752275,13.31287535,190.26,190.14,13.31287535]
[1735534752479,13.31287535,190.23,190.15,7.16216245]
[1735534752779,13.31287535,190.23,190.15,3.06]
[1735534752980,2.635,190.16,190.15,3.06]
[1735534753178,2.635,190.16,190.15,7.16282425]
[1735534754068,2.635,190.16,190.15,4.10282425]
[1735534754271,13.31287535,190.23,190.15,4.10282425]
[1735534754468,2.6349,190.17,190.14,3.06]
[1735534754668,2.6349,190.17,190.15,4.10588098]
[1735534754871,2.6349,190.17,190.14,3.06]
[1735534755074,2.6349,190.17,190.15,4.1058792]
[1735534755274,2.6349,190.17,190.14,3.06]
[1735534755472,2.6349,190.17,190.15,4.10643729]
[1735534755672,2.6349,190.17,190.14,3.06]
[1735534755983,2.6349,190.17,190.15,4.10666399]
[1735534756182,2.6349,190.17,190.14,3.06]
[1735534756379,2.6349,190.17,190.15,4.10740619]
[1735534756580,2.635,190.16,190.14,3.06]
[1735534756781,2.635,190.16,190.15,4.10777205]
[1735534759192,2.635,190.16,190.14,3.06]
[1735534759384,2.635,190.16,190.15,4.11164227]
[1735534759780,2.6354,190.13,190.12,3.06]
[1735534759985,2.6354,190.13,190.12,4.11242243]
[1735534760484,2.6358,190.11,190.06,13.47567936]
[1735534760788,2.6358,190.11,190.07,4.11441596]
[1735534760988,2.6358,190.11,190.08,4.11441596]
[1735534761188,2.6358,190.11,190.09,4.11441596]
[1735534761385,2.6358,190.11,190.1,4.11441596]
[1735534761589,2.6358,190.11,190.1,4.11639819]
[1735534762590,2.636,190.09,190.05,3.06]
[1735534762789,2.636,190.09,190.06,4.11606577]
[1735534762984,2.636,190.09,190.07,4.11606577]
[1735534763182,2.636,190.09,190.08,4.11606577]
[1735534764590,2.636,190.09,190.08,4.11484792]
[1735534765199,2.636,190.09,190.08,1.47894792]
[1735534765389,13.31287535,190.1,189.97,20.59915471]
[1735534766098,13.31287535,190.1,189.97,13.31287535]
[1735534766892,13.31287535,190.1,189.99,2.6373]
[1735534767092,13.31287535,190.1,190.0,3.12]
[1735534768002,13.31287535,190.1,189.97,2.6375]
[1735534768484,2.6364,190.07,189.97,2.6375]
[1735534768684,13.31287535,190.1,189.97,2.6375]
[1735534769294,2.6364,190.07,189.97,2.6375]
[1735534769490,13.31287535,190.1,189.98,2.6375]
[1735534770393,2.6363,190.07,189.98,2.6375]
[1735534770597,13.31287535,190.1,189.99,13.31287535]
[1735534770797,16.43287535,190.1,189.99,13.31287535]
[1735534771498,2.6365,190.06,190.0,2.6372]
[1735534771698,16.43287535,190.1,190.0,2.6372]
[1735534772601,2.6365,190.05,190.0,2.6372]
[1735534772899,2.6365,190.05,189.99,15.95017535]
[1735534773102,16.43287535,190.1,189.99,13.31287535]
[1735534773297,2.6364,190.06,190.0,2.6371]
[1735534773491,16.43287535,190.1,189.99,13.31287535]
[1735534773905,2.6366,190.05,189.99,13.31287535]
[1735534774302,16.43287535,190.1,189.99,13.31287535]
[1735534774597,2.6368,190.04,189.99,13.31287535]
[1735534775002,2.6364,190.06,190.0,2.6372]
[1735534775403,16.43287535,190.1,190.0,2.6372]
[1735534776107,2.6365,190.05,189.99,13.31287535]
[1735534776507,16.43287535,190.1,189.99,13.31287535]
[1735534776706,2.6369,190.02,189.99,13.31287535]
[1735534777499,2.6369,190.02,189.98,3.12]
[1735534777700,2.6369,190.02,189.98,16.43287535]
[1735534778200,2.6369,190.02,189.98,3.12]
[1735534778602,2.6369,190.02,189.97,16.43287535]
[1735534779806,16.43287535,190.1,189.97,16.43287535]
[1735534780011,2.6371,190.01,189.97,16.43287535]
[1735534781201,2.6372,190.0,189.97,16.43287535]
[1735534781407,16.43287535,190.1,189.97,13.31287535]
[1735534782309,8.52893946,190.05,189.98,8.52893946]
[1735534782605,2.6374,189.99,189.98,8.52893946]
[1735534782810,8.52893946,190.03,189.95,24.33175939]
[1735534783011,8.52893946,190.03,189.96,8.52893946]
[1735534783211,3.12,190.05,189.95,21.21175939]
[1735534783212,2.6376,189.97,189.95,21.21175939]
[1735534783408,8.52893946,190.01,189.95,21.21175939]
[1735534784112,2.6378,189.96,189.95,21.21175939]
[1735534790416,2.6377,189.97,189.95,21.21175939]
[1735534790615,2.6377,189.97,189.96,8.52893946]
[1735534791316,2.6377,189.97,189.95,21.21175939]
[1735534791515,2.6378,189.96,189.95,21.21175939]
[1735534791811,3.12,190.05,189.95,21.21175939]
[1735534792015,8.52893946,190.04,189.96,8.52893946]
[1735534792411,2.6375,189.99,189.96,8.52893946]
[1735534794914,2.6378,189.96,189.95,21.21175939]
[1735534798409,11.16673946,189.96,189.95,21.21175939]
[1735534799114,14.26673946,189.96,189.95,21.21175939]
[1735534799713,2.6389,189.88,189.87,29.14511746]
[1735534799913,11.16783946,189.88,189.87,29.14511746]
[1735534800608,8.52893946,189.88,189.82,7.28627936]
[1735534801214,2.6394,189.84,189.82,7.28627936]
[1735534801617,8.52893946,189.88,189.82,7.28627936]
[1735534801815,8.52893946,189.86,189.82,7.28627936]
[1735534802119,8.52893946,189.85,189.79,8.52893946]
[1735534802322,12.02070393,189.86,189.76,10.33687936]
[1735534802714,15.12070393,189.89,189.76,10.33687936]
[1735534803109,15.12070393,189.89,189.76,3.0506]
[1735534803313,12.02070393,189.86,189.74,22.40698329]
[1735534803719,12.02070393,189.9,189.74,22.40698329]
[1735534803915,12.02070393,189.9,189.77,12.02070393]
[1735534804115,12.02070393,189.93,189.8,12.02070393]
[1735534804312,12.02070393,189.93,189.83,2.6395]
[1735534804511,12.02070393,189.93,189.84,1.5731]
[1735534806415,2.6389,189.89,189.84,1.5731]
[1735534806615,12.02070393,189.93,189.84,1.5731]
[1735534807715,12.02070393,189.93,189.81,3.0985]
[1735534807921,12.02070393,189.9,189.81,1.5265]
[1735534808120,2.6395,189.84,189.81,1.5265]
[1735534808319,12.02070393,189.9,189.81,1.5265]
[1735534810322,2.639,189.88,189.81,1.5265]
[1735534810618,12.02070393,189.9,189.81,1.5265]
[1735534811021,2.6392,189.86,189.81,1.5265]
[1735534811217,12.02070393,189.9,189.81,1.5265]
[1735534811721,2.639,189.87,189.81,1.5265]
[1735534812124,12.02070393,189.9,189.81,1.5265]
[1735534812325,12.02070393,189.93,189.81,1.5265]
[1735534812919,2.6386,189.91,189.85,2.6393]
[1735534813122,12.02070393,189.96,189.86,1.602]
[1735534813314,12.02070393,189.96,189.86,3.1423]
[1735534813519,2.6382,189.94,189.88,2.6389]
[1735534814520,12.02070393,189.96,189.85,3.1]
[1735534814820,12.02070393,189.96,189.86,1.602]
[1735534815027,2.6382,189.93,189.86,1.602]
[1735534815225,12.02070393,189.96,189.86,1.602]
[1735534815623,2.6382,189.93,189.86,4.2411]
[1735534815827,12.02070393,189.96,189.86,4.2411]
[1735534816023,12.02070393,189.96,189.86,4.702]
[1735534816827,2.6386,189.91,189.86,4.702]
[1735534817629,2.6383,189.92,189.87,2.639]
[1735534818028,15.12070393,189.99,189.88,1.5385]
[1735534818233,12.02070393,189.99,189.88,1.5385]
[1735534818528,12.02070393,189.99,189.89,12.02070393]
[1735534819026,12.02070393,189.99,189.88,1.5385]
[1735534819628,12.02070393,189.99,189.89,1.5117]
[1735534819829,12.02070393,189.99,189.91,2.6384]
[1735534820030,12.02070393,190.02,189.91,3.1]
[1735534820420,2.6378,189.97,189.92,2.6382]
[1735534820622,12.02070393,190.02,189.92,2.6382]
[1735534820928,2.6374,189.99,189.91,5.7384]
[1735534821222,12.02070393,190.02,189.91,5.7384]
[1735534821522,12.02070393,190.02,189.91,3.1]
[1735534821523,2.6379,189.95,189.91,3.1]
[1735534822429,2.6379,189.95,189.9,5.7386]
[1735534822631,2.6381,189.94,189.9,5.7386]
[1735534823225,2.6381,189.94,189.88,1.5385]
[1735534823226,12.02070393,189.99,189.88,1.5385]
[1735534823429,12.02070393,189.96,189.88,1.5385]
[1735534823628,12.02070393,189.93,189.83,4.7316]
[1735534823924,12.02070393,189.93,189.83,1.6316]
[1735534827230,2.6386,189.9,189.83,1.6316]
[1735534827428,15.12070393,189.96,189.83,13.65230393]
[1735534827627,12.02070393,189.96,189.86,12.02070393]
[1735534827827,12.02070393,189.96,189.87,3.12]
[1735534828224,2.6382,189.93,189.88,2.6389]
[1735534828435,12.02070393,189.96,189.87,3.12]
[1735534828625,2.6384,189.92,189.87,3.12]
[1735534828831,12.02070393,189.96,189.87,3.12]
[1735534829530,2.6386,189.91,189.87,3.12]
[1735534829835,12.02070393,189.96,189.87,3.12]
[1735534830237,2.6383,189.92,189.87,5.7589]
[1735534830433,12.02070393,189.96,189.87,3.12]
[1735534831236,12.02070393,189.96,189.87,5.7589]
[1735534832032,2.6383,189.93,189.87,5.7589]
[1735534832233,2.6383,189.93,189.88,2.6389]
[1735534832430,12.02070393,189.96,189.88,1.4814]
[1735534832731,2.6382,189.93,189.88,1.4814]
[1735534833731,2.6385,189.91,189.88,1.4814]
[1735534834730,2.6383,189.93,189.88,1.4814]
[1735534834931,12.02070393,189.96,189.88,1.4814]
[1735534835448,2.6383,189.93,189.88,1.4814]
[1735534836243,12.02070393,189.96,189.88,1.4814]
[1735534836539,2.6383,189.92,189.88,1.4814]
[1735534836741,12.02070393,189.96,189.86,2.6392]
[1735534836941,2.6385,189.91,189.86,2.6392]
[1735534837632,12.02070393,189.96,189.86,2.6392]
[1735534837633,2.6386,189.9,189.86,2.6392]
[1735534842341,12.02070393,189.96,189.85,3.12]
[1735534842543,12.02070393,189.93,189.84,1.5197]
[1735534843342,12.02070393,189.93,189.81,30.72281746]
[1735534843645,12.02070393,189.93,189.81,1.5777]
[1735534843843,12.02070393,189.9,189.81,1.5777]
[1735534844047,2.6396,189.83,189.81,1.5777]
[1735534844344,7.69084487,189.87,189.81,1.5777]
[1735534844644,2.6393,189.85,189.81,1.5777]
[1735534845641,2.6393,189.85,189.81,4.2174]
[1735534846141,7.69084487,189.87,189.81,1.5777]
[1735534846342,7.29250461,189.99,189.81,1.5777]
[1735534846343,15.13525224,189.91,189.81,1.5777]
[1735534846939,15.13525224,189.91,189.81,4.2174]
[1735534847344,2.6393,189.86,189.81,4.2174]
[1735534847537,15.13525224,189.91,189.79,1.5366]
[1735534847735,3.12,189.91,189.78,3.81569031]
[1735534847935,12.01525224,189.86,189.78,3.81569031]
[1735534848238,15.13525224,189.86,189.75,29.14511746]
[1735534848442,12.01525224,189.83,189.75,29.14511746]
[1735534849142,12.01525224,189.83,189.71,7.28627936]
[1735534849334,12.01525224,189.8,189.71,7.28627936]
[1735534849539,15.13525224,189.8,189.71,7.28627936]
[1735534849747,2.6405,189.76,189.71,7.28627936]
[1735534850143,15.13525224,189.8,189.71,7.28627936]
[1735534850445,2.6407,189.75,189.71,7.28627936]
[1735534850641,12.01525224,189.77,189.71,7.28627936]
[1735534850846,12.01525224,189.77,189.68,1.5709]
[1735534851042,15.13525224,189.8,189.68,1.5709]
[1735534851247,2.6407,189.75,189.68,4.2125]
[1735534851444,15.13525224,189.8,189.68,1.5709]
[1735534851845,2.641,189.73,189.68,1.5709]
[1735534852445,12.01525224,189.8,189.68,1.5709]
[1735534852642,12.01525224,189.8,189.69,12.01525224]
[1735534852844,12.01525224,189.74,189.61,29.14511746]
[1735534853043,12.01525224,189.74,189.64,2.6422]
[1735534853347,12.01525224,189.74,189.62,1.5079]
[1735534854643,15.13525224,189.74,189.62,1.5079]
[1735534855548,15.13525224,189.74,189.63,3.16]
[1735534856348,12.01525224,189.71,189.61,29.14511746]
[1735534856747,2.6418,189.67,189.61,29.14511746]
[1735534857146,12.01525224,189.71,189.61,29.14511746]
[1735534858046,12.01525224,189.71,189.61,31.78771746]
[1735534858246,12.01525224,189.71,189.61,29.14511746]
[1735534859158,15.17525224,189.74,189.62,1.4911]
[1735534859449,12.01525224,189.74,189.62,3.0236]
[1735534859643,2.6412,189.72,189.65,2.6421]
[1735534859848,12.01525224,189.74,189.62,3.0236]
[1735534860251,12.01525224,189.74,189.63,2.6422]
[1735534860455,12.01525224,189.71,189.62,1.4911]
[1735534861045,12.01525224,189.71,189.61,29.14511746]
[1735534861852,12.01525224,189.71,189.62,3.16]
[1735534862447,2.6415,189.69,189.62,5.8024]
[1735534862751,12.01525224,189.76,189.62,15.17525224]
[1735534862957,12.01525224,189.76,189.63,1.5305]
[1735534863157,2.6411,189.73,189.66,2.6419]
[1735534863358,2.6411,189.73,189.67,3.16]
[1735534863955,12.01525224,189.76,189.67,3.16]
[1735534863956,12.01525224,189.76,189.67,5.8017]
[1735534865259,12.01525224,189.76,189.67,3.16]
[1735534865756,2.6409,189.74,189.67,3.16]
[1735534865957,12.01525224,189.76,189.67,3.16]
[1735534866157,3.16,189.79,189.62,3.16]
[1735534866158,12.01525224,189.73,189.62,3.16]
[1735534866660,12.01525224,189.73,189.62,5.8024]
[1735534866857,12.01525224,189.73,189.62,3.16]
[1735534867765,2.6414,189.7,189.64,2.6421]
[1735534867969,12.01525224,189.73,189.65,1.548]
[1735534868272,2.6412,189.72,189.65,1.548]
[1735534868466,12.01525224,189.76,189.66,1.4852]
[1735534868666,12.01525224,189.76,189.67,3.16]
[1735534868872,2.6409,189.74,189.69,2.6415]
[1735534869766,12.01525224,189.76,189.67,3.16]
[1735534869966,12.01525224,189.76,189.68,2.6416]
[1735534870171,12.01525224,189.76,189.67,3.16]
[1735534870372,12.01525224,189.79,189.67,3.16]
[1735534870573,12.01525224,189.79,189.7,2.6413]
[1735534870966,12.01525224,189.79,189.73,2.6409]
[1735534871162,12.01525224,189.82,189.73,3.16]
[1735534871569,2.64,189.8,189.74,3.0587]
[1735534871969,2.64,189.8,189.75,2.6406]
[1735534873274,12.01525224,189.85,189.74,3.0587]
[1735534873475,12.01525224,189.85,189.77,2.6403]
[1735534873476,2.6398,189.82,189.77,2.6403]
[1735534873669,12.01525224,189.88,189.78,3.16]
[1735534873873,12.01525224,189.91,189.78,3.16]
[1735534874578,2.6395,189.84,189.79,2.6401]
[1735534875774,12.01525224,189.99,189.83,12.01525224]
[1735534875775,12.01525224,189.94,189.83,12.01525224]
[1735534875972,12.01525224,189.94,189.84,4.6709]
[1735534876168,12.01525224,189.94,189.84,6.2306]
[1735534876575,2.6382,189.94,189.86,2.6391]
[1735534876872,12.01525224,189.97,189.84,7.7146]
[1735534877074,12.01525224,189.97,189.86,12.01525224]
[1735534877379,2.6382,189.93,189.88,2.6389]
[1735534877678,2.6382,189.93,189.89,3.16]
[1735534878971,12.01525224,189.97,189.86,12.01525224]
[1735534878972,2.6387,189.9,189.86,12.01525224]
[1735534879174,12.01525224,189.94,189.84,4.5546]
[1735534879481,12.01525224,189.94,189.84,7.7146]
[1735534880473,2.6386,189.9,189.84,10.354]
[1735534881172,2.6392,189.86,189.84,3.0706]
[1735534881478,12.01525224,189.91,189.8,3.16]
[1735534882977,12.01525224,189.91,189.8,5.8]
[1735534883983,2.6392,189.86,189.8,5.8]
[1735534884175,12.01525224,189.91,189.78,3.16]
[1735534884176,12.01525224,189.88,189.78,3.16]
[1735534884477,12.01525224,189.88,189.77,4.6933]
[1735534884675,12.01525224,189.88,189.77,7.8533]
[1735534885481,12.01525224,189.88,189.77,7.9133]
[1735534885678,12.01525224,189.88,189.77,4.6933]
[1735534885874,12.01525224,189.88,189.77,7.9133]
[1735534886678,12.01525224,189.88,189.77,3.1755]
[1735534886886,12.01525224,189.85,189.76,4.0607226]
[1735534887179,2.6402,189.79,189.76,4.0607226]
[1735534887383,12.01525224,189.85,189.76,4.0607226]
[1735534887587,2.64,189.8,189.76,4.0607226]
[1735534888079,3.22,189.86,189.76,4.0607226]
[1735534888483,15.23525224,189.9,189.76,4.0607226]
[1735534889883,15.23525224,189.9,189.77,12.01525224]
[1735534890884,2.6395,189.84,189.77,12.01525224]
[1735534891085,12.01525224,189.9,189.77,12.01525224]
[1735534891389,2.6388,189.89,189.8,12.01525224]
[1735534891586,12.01525224,189.93,189.81,3.22]